bitfinex-derivatives/quotes_BTCF0:USTF0_20251130
["timestamp","ask_amount","ask_price","bid_price","bid_amount"]
[1764488233452,0.37016484,91008.0,91007.0,0.04327]
[1764488238072,0.37016484,91008.0,91002.0,0.024787]
[1764488238073,0.37016484,91008.0,91003.0,0.07895909]
[1764488238268,0.37016484,91008.0,91003.0,0.10172909]
[1764488238465,0.37016484,91008.0,91003.0,0.04406]
[1764488239966,0.37016484,91008.0,90999.0,0.03592]
[1764488240265,0.78016484,91008.0,90999.0,0.03592]
[1764488240471,0.78016484,91008.0,90999.0,0.0469073]
[1764488240671,0.78016484,91008.0,90999.0,0.0681973]
[1764488240866,0.78016484,91008.0,91003.0,0.001]
[1764488241368,0.78016484,91008.0,90999.0,0.0714473]
[1764488241571,0.78016484,91008.0,91001.0,0.22182715]
[1764488241970,0.78016484,91008.0,91003.0,0.001]
[1764488242668,0.78016484,91008.0,90999.0,0.0705173]
[1764488243766,0.78016484,91008.0,91001.0,0.24436715]
[1764488244269,0.78016484,91008.0,91003.0,0.02284]
[1764488244679,0.78016484,91008.0,91003.0,0.02184]
[1764488244975,0.78016484,91008.0,91004.0,0.01316]
[1764488245178,0.78016484,91008.0,91004.0,0.035]
[1764488247676,0.78016484,91008.0,91004.0,0.036]
[1764488247871,0.78016484,91008.0,91004.0,0.035]
[1764488248070,0.78016484,91008.0,91004.0,0.036]
[1764488248376,0.78016484,91008.0,91004.0,0.05854]
[1764488249978,0.78016484,91008.0,91004.0,0.05754]
[1764488250182,0.78016484,91008.0,91004.0,0.05854]
[1764488250574,0.78016484,91008.0,91004.0,0.05754]
[1764488250775,0.78016484,91008.0,91004.0,0.05854]
[1764488251169,0.78016484,91008.0,91004.0,0.05754]
[1764488251375,0.78016484,91008.0,91004.0,0.05854]
[1764488255581,0.78016484,91008.0,91004.0,0.11770014]
[1764488258198,0.78016484,91008.0,91004.0,0.07332014]
[1764488258496,0.78016484,91008.0,91004.0,0.11770014]
[1764488260196,0.78016484,91008.0,91004.0,0.11670014]
[1764488260395,0.78016484,91008.0,91004.0,0.11770014]
[1764488261391,0.78016484,91008.0,91005.0,0.08100014]
[1764488261694,0.78016484,91008.0,91005.0,0.10354014]
[1764488262998,0.78016484,91008.0,91005.0,0.10454014]
[1764488263498,0.78016484,91008.0,91005.0,0.10354014]
[1764488264299,0.78016484,91008.0,91006.0,0.05916014]
[1764488264602,0.78016484,91008.0,91006.0,0.10321014]
[1764488266397,0.78016484,91008.0,91007.0,0.10449014]
[1764488268306,0.78016484,91008.0,91007.0,0.04533]
[1764488269402,0.80351143,91008.0,91007.0,0.04533]
[1764488269607,0.80451143,91008.0,91007.0,0.04533]
[1764488282213,0.39451143,91008.0,91007.0,0.04533]
[1764488283717,0.39451143,91008.0,91006.0,0.01337]
[1764488284014,0.37116484,91008.0,91006.0,0.01337]
[1764488284214,0.37116484,91008.0,91006.0,0.03649]
[1764488284615,0.37016484,91008.0,91006.0,0.03649]
[1764488285319,0.37016484,91008.0,91006.0,0.0587]
[1764488288418,0.37016484,91008.0,91006.0,0.0696865]
[1764488293418,0.37016484,91008.0,91006.0,0.0587]
[1764488296814,0.02339046,91007.0,91006.0,0.0587]
[1764488297118,0.38339046,91007.0,91006.0,0.0587]
[1764488297319,0.36,91007.0,91006.0,0.0587]
[1764488370462,0.36,91007.0,91006.0,0.13765909]
[1764488371457,0.36,91007.0,91006.0,0.0587]
[1764488372263,0.36,91007.0,91006.0,0.13762737]
[1764488388486,0.36,91007.0,91006.0,0.11541737]
[1764488389084,0.36,91007.0,91006.0,0.13710737]
[1764488391189,0.36,91007.0,91006.0,0.05818]
[1764488394495,0.36,91007.0,91004.0,0.07896361]
[1764488395384,0.36,91007.0,91005.0,0.07896361]
[1764488396101,0.36,91007.0,91004.0,0.07896361]
[1764488396395,0.78,91007.0,91003.0,0.07896361]
[1764488397099,0.78,91007.0,91002.0,0.09212361]
[1764488397794,0.78,91007.0,91002.0,0.31386076]
[1764488397989,0.781,91007.0,91002.0,0.31386076]
[1764488398296,0.541,91007.0,91002.0,0.23489715]
[1764488398494,0.54,91007.0,91002.0,0.23589715]
[1764488398796,0.54,91007.0,91002.0,0.25758715]
[1764488400495,0.36,91007.0,91005.0,0.05623]
[1764488402695,0.78,91007.0,91000.0,0.01337]
[1764488402994,0.78,91007.0,90987.0,0.01279]
[1764488402995,0.13933136,91006.0,90991.0,0.07896361]
[1764488403296,0.02323668,91005.0,90990.0,0.01279]
[1764488403491,0.76323668,91005.0,90990.0,0.01279]
[1764488403692,0.14096848,91004.0,90990.0,0.01279]
[1764488403888,0.02323668,91003.0,90990.0,0.01279]
[1764488404092,0.77323668,91003.0,90990.0,0.01279]
[1764488404294,0.14096848,91002.0,90990.0,0.01279]
[1764488404595,0.02323668,91001.0,90990.0,0.01279]
[1764488404796,0.83323668,91001.0,90990.0,0.01279]
[1764488404996,0.14867265,91000.0,90990.0,0.01279]
[1764488405191,0.92543597,91000.0,90990.0,0.01279]
[1764488406185,0.92743597,91000.0,90990.0,0.01279]
[1764488407595,0.92843597,91000.0,90990.0,0.01279]
[1764488409003,0.92843597,91000.0,90999.0,0.03454]
[1764488409201,0.92643597,91000.0,90999.0,0.05623]
[1764488409401,0.00394,90999.0,90996.0,0.01279]
[1764488409601,0.77394,90999.0,90990.0,0.01279]
[1764488411504,0.77694,90999.0,90990.0,0.01279]
[1764488413189,0.9499,90999.0,90990.0,0.01279]
[1764488413793,0.77694,90999.0,90990.0,0.01279]
[1764488414309,0.9499,90999.0,90990.0,0.01279]
[1764488414500,0.77694,90999.0,90990.0,0.01279]
[1764488414694,0.9499,90999.0,90990.0,0.01279]
[1764488416698,0.5699,90999.0,90998.0,0.04510484]
[1764488417007,0.7199,90999.0,90998.0,0.04510484]
[1764488417698,0.39694,90999.0,90998.0,0.04510484]
[1764488417893,0.5699,90999.0,90998.0,0.04510484]
[1764488419509,0.39694,90999.0,90998.0,0.04510484]
[1764488419704,0.5689,90999.0,90998.0,0.04510484]
[1764488420010,0.5669,90999.0,90998.0,0.04510484]
[1764488423814,0.5689,90999.0,90998.0,0.04510484]
[1764488424722,0.5679,90999.0,90998.0,0.04510484]
[1764488425019,0.5689,90999.0,90998.0,0.04510484]
[1764488426518,0.5679,90999.0,90998.0,0.04510484]
[1764488426711,0.5689,90999.0,90998.0,0.04510484]
[1764488427313,0.5669,90999.0,90998.0,0.04510484]
[1764488427511,0.5689,90999.0,90998.0,0.04510484]
[1764488427922,0.5679,90999.0,90998.0,0.04510484]
[1764488428115,0.5689,90999.0,90998.0,0.04510484]
[1764488430321,1.0089,90999.0,90998.0,0.04510484]
[1764488431228,1.03220169,90999.0,90998.0,0.04510484]
[1764488433018,1.03120169,90999.0,90998.0,0.04510484]
[1764488433224,1.03220169,90999.0,90998.0,0.00016484]
[1764488435926,1.03120169,90999.0,90998.0,0.00016484]
[1764488436133,1.03320169,90999.0,90998.0,0.00016484]
[1764488437528,1.03320169,90999.0,90978.0,0.01316]
[1764488437529,0.00394,90995.0,90994.0,0.05912156]
[1764488437826,0.00394,90982.0,90981.0,0.05836]
[1764488438027,0.36394,90982.0,90981.0,0.05836]
[1764488439830,0.36394,90982.0,90981.0,0.05936]
[1764488463752,0.36394,90982.0,90981.0,0.001]
[1764488463956,0.9003285,90982.0,90981.0,0.001]
[1764488464141,0.00394,90980.0,90979.0,0.19998715]
[1764488464343,0.00394,90973.0,90968.0,0.07896361]
[1764488464543,0.77394,90973.0,90968.0,0.07896361]
[1764488465155,0.77394,90973.0,90967.0,0.07896361]
[1764488465554,0.77394,90973.0,90972.0,0.00316484]
[1764488466848,0.77394,90973.0,90972.0,0.01525294]
[1764488468957,0.47394,90973.0,90972.0,0.01525294]
[1764488470257,0.40394,90973.0,90972.0,0.07211294]
[1764488471160,0.4,90973.0,90972.0,0.07211294]
[1764488472152,0.40197,90973.0,90972.0,0.07211294]
[1764488473162,0.4,90973.0,90972.0,0.15107655]
[1764488473664,0.40197,90973.0,90972.0,0.15107655]
[1764488478957,0.40394,90973.0,90972.0,0.15107655]
[1764488485470,0.40394,90973.0,90972.0,0.07211294]
[1764488520603,0.40394,90973.0,90972.0,0.01525294]
[1764488520797,0.79394,90973.0,90970.0,0.07909472]
[1764488520996,0.02251872,90972.0,90970.0,0.00934067]
[1764488521198,0.02251872,90971.0,90966.0,0.00027483]
[1764488521402,0.76251872,90971.0,90966.0,0.00027483]
[1764488521595,0.02251872,90970.0,90966.0,0.00027483]
[1764488521801,0.76251872,90970.0,90966.0,0.00027483]
[1764488521998,0.74,90970.0,90966.0,0.00027483]
[1764488522696,0.74,90970.0,90966.0,0.01191273]
[1764488522895,0.743,90970.0,90966.0,0.00027483]
[1764488523509,0.742,90970.0,90966.0,0.00027483]
[1764488523709,0.743,90970.0,90966.0,0.00027483]
[1764488523909,0.741,90970.0,90966.0,0.00027483]
[1764488524211,0.743,90970.0,90966.0,0.00027483]
[1764488524406,0.742,90970.0,90966.0,0.00027483]
[1764488525398,0.74,90970.0,90966.0,0.00027483]
[1764488525613,0.743,90970.0,90966.0,0.00027483]
[1764488525813,0.743,90970.0,90966.0,0.01224795]
[1764488526008,0.74,90970.0,90966.0,0.00027483]
[1764488526217,0.743,90970.0,90966.0,0.00027483]
[1764488526412,0.503,90970.0,90966.0,0.01395483]
[1764488527106,0.502,90970.0,90966.0,0.01395483]
[1764488528419,0.502,90970.0,90966.0,0.02548299]
[1764488530219,0.5,90970.0,90966.0,0.02548299]
[1764488530518,0.502,90970.0,90966.0,0.02548299]
[1764488530719,0.502,90970.0,90966.0,0.04743299]
[1764488533725,0.772,90970.0,90966.0,0.04743299]
[1764488536822,0.772,90970.0,90966.0,0.02548299]
[1764488538122,0.772,90970.0,90966.0,0.01180299]
[1764488538724,0.77,90970.0,90966.0,0.01180299]
[1764488538913,0.772,90970.0,90966.0,0.02454299]
[1764488539514,0.772,90970.0,90966.0,0.01180299]
[1764488539714,0.15022829,90969.0,90959.0,0.00016484]
[1764488539913,0.02373421,90968.0,90959.0,0.00016484]
[1764488540114,0.84373421,90968.0,90959.0,0.00016484]
[1764488540321,0.84373421,90968.0,90960.0,0.01274]
[1764488540322,0.14050287,90967.0,90960.0,0.01274]
[1764488540621,0.02373421,90966.0,90960.0,0.01274]
[1764488540821,0.173,90965.0,90960.0,0.01274]
[1764488541017,1.003,90965.0,90960.0,0.01274]
[1764488541325,1.003,90965.0,90960.0,0.02457265]
[1764488542017,1.006,90965.0,90960.0,0.04665265]
[1764488542412,1.006,90965.0,90963.0,0.01296]
[1764488542725,1.006,90965.0,90960.0,0.04478]
[1764488542924,1.006,90965.0,90960.0,0.06947205]
[1764488543226,0.02373523,90964.0,90960.0,0.06947205]
[1764488543430,0.79,90964.0,90960.0,0.06947205]
[1764488544727,0.793,90964.0,90960.0,0.06947205]
[1764488544929,0.793,90964.0,90963.0,0.01296]
[1764488545128,0.81673701,90964.0,90963.0,0.05774]
[1764488545919,0.47673701,90964.0,90963.0,0.05774]
[1764488546328,0.64973701,90964.0,90963.0,0.05774]
[1764488547019,0.624,90964.0,90963.0,0.05774]
[1764488547218,0.628,90964.0,90963.0,0.05774]
[1764488548118,0.626,90964.0,90963.0,0.05774]
[1764488548322,0.625,90964.0,90963.0,0.05774]
[1764488548631,0.623,90964.0,90963.0,0.05774]
[1764488548826,0.626,90964.0,90963.0,0.05774]
[1764488549328,0.54976509,90964.0,90963.0,0.05774]
[1764488550831,0.54876509,90964.0,90963.0,0.05774]
[1764488551036,0.525,90964.0,90963.0,0.05774]
[1764488555235,0.54876683,90964.0,90963.0,0.05774]
[1764488562833,0.37576683,90964.0,90963.0,0.05774]
[1764488604566,0.82576683,90964.0,90963.0,0.05774]
[1764488609376,0.82595702,90964.0,90963.0,0.05774]
[1764488610778,0.60595702,90964.0,90963.0,0.05774]
[1764488612467,0.37595702,90964.0,90963.0,0.05774]
[1764488618578,0.37597774,90964.0,90963.0,0.05774]
[1764488642096,0.352,90964.0,90963.0,0.05774]
[1764488645510,0.35,90964.0,90963.0,0.05774]
[1764488645703,0.351,90964.0,90963.0,0.05774]
[1764488664232,0.351,90964.0,90963.0,0.03522]
[1764488664836,0.351,90964.0,90963.0,0.0575]
[1764488675053,0.351,90964.0,90963.0,0.0684918]
[1764488678147,0.351,90964.0,90963.0,0.0575]
[1764488709474,0.351,90964.0,90960.0,0.12619302]
[1764488709682,0.02399882,90963.0,90962.0,0.05804]
[1764488709976,0.73399882,90963.0,90962.0,0.05804]
[1764488710282,0.71,90963.0,90962.0,0.05804]
[1764488710778,0.711,90963.0,90962.0,0.05804]
[1764488711473,0.471,90963.0,90962.0,0.05804]
[1764488716395,0.361,90963.0,90962.0,0.05804]
[1764488738608,0.02327484,90989.0,90988.0,0.05212]
[1764488738817,0.07,90989.0,90988.0,0.0631088]
[1764488739107,0.12930083,91020.0,91005.0,0.0565667]
[1764488739300,0.43338471,91006.0,91005.0,0.0565667]
[1764488739501,0.45444471,91006.0,91005.0,0.0565667]
[1764488740309,0.45444471,91006.0,91005.0,0.25655385]
[1764488740496,0.45644471,91006.0,91005.0,0.25655385]
[1764488741414,0.45644471,91006.0,91005.0,0.31545457]
[1764488742209,0.45644471,91006.0,91005.0,0.25655385]
[1764488746813,0.45644471,91006.0,91005.0,0.23413385]
[1764488747013,0.45644471,91006.0,91005.0,0.21097385]
[1764488747615,0.45644471,91006.0,91005.0,0.23261385]
[1764488748707,0.45644471,91006.0,91005.0,0.25571385]
[1764488754817,0.45644471,91006.0,91005.0,0.26858385]
[1764488756616,0.45644471,91006.0,91005.0,0.21097385]
[1764488758117,0.45644471,91006.0,91005.0,0.23261385]
[1764488759912,0.45644471,91006.0,91005.0,0.25571385]
[1764488760713,0.45644471,91006.0,91005.0,0.19998715]
[1764488773127,0.45644471,91006.0,91005.0,0.25888787]
[1764488773332,0.85644471,91006.0,91005.0,0.19998715]
[1764488773526,0.01418,90993.0,90991.0,0.05890072]
[1764488773721,0.01418,90987.0,90985.0,0.05890072]
[1764488773922,0.01418,90986.0,90985.0,0.05890072]
[1764488774224,0.40418,90986.0,90985.0,0.05890072]
[1764488774425,0.40418,90986.0,90978.0,0.01327]
[1764488774426,0.01418,90984.0,90983.0,0.10182072]
[1764488774626,0.41418,90984.0,90983.0,0.10182072]
[1764488775428,0.41418,90984.0,90983.0,0.04292]
[1764488776835,0.41618,90984.0,90983.0,0.04292]
[1764488777534,0.41518,90984.0,90983.0,0.04292]
[1764488777944,0.41418,90984.0,90983.0,0.04292]
[1764488779535,0.41418,90984.0,90983.0,0.24285416]
[1764488780034,0.41518,90984.0,90983.0,0.24285416]
[1764488780535,0.41418,90984.0,90983.0,0.24285416]
[1764488783630,0.41418,90984.0,90983.0,0.24385416]
[1764488784140,0.41418,90984.0,90983.0,0.24285416]
[1764488784337,0.41418,90984.0,90983.0,0.24385416]
[1764488786839,0.41418,90984.0,90983.0,0.24285416]
[1764488800348,0.41418,90984.0,90983.0,0.30175488]
[1764488801451,0.41418,90984.0,90983.0,0.24285416]
[1764488803354,0.38779211,90984.0,90983.0,0.24285416]
[1764488804751,0.00016484,90995.0,90984.0,0.01301]
[1764488804952,0.02296263,90994.0,90990.0,0.05873]
[1764488805252,0.02296263,90993.0,90990.0,0.05873]
[1764488805453,0.02296263,90992.0,90990.0,0.05873]
[1764488805653,0.40296263,90992.0,90990.0,0.05873]
[1764488805855,0.02296263,90991.0,90990.0,0.25866416]
[1764488806057,0.40296263,90991.0,90990.0,0.25866416]
[1764488807244,0.40396263,90991.0,90990.0,0.25866416]
[1764488807444,0.40496263,90991.0,90990.0,0.25866416]
[1764488809950,0.07496263,90991.0,90990.0,0.25866416]
[1764488810656,0.29496263,90991.0,90990.0,0.25866416]
[1764488812358,0.29496263,90991.0,90990.0,0.31793007]
[1764488814062,0.02496263,90991.0,90990.0,0.31793007]
[1764488821177,0.02496263,90991.0,90990.0,0.25866416]
[1764488821664,0.002,90991.0,90990.0,0.25866416]
[1764488822668,0.00016484,90995.0,90994.0,0.04572]
[1764488822974,0.12924443,91010.0,91005.0,0.05873]
[1764488823163,0.45027471,91006.0,91005.0,0.05873]
[1764488823365,0.47322979,91006.0,91005.0,0.05873]
[1764488824862,0.47722979,91006.0,91005.0,0.05873]
[1764488825359,0.47822979,91006.0,91005.0,0.05873]
[1764488827367,0.04421,91000.0,90999.0,0.01301]
[1764488827559,0.06716508,91000.0,90999.0,0.05873]
[1764488837472,0.04421,91000.0,90999.0,0.05873]
[1764488851177,0.04421,91000.0,90999.0,0.11797319]
[1764488852387,0.07911338,91030.0,91029.0,0.0555138]
[1764488852689,0.07079,91058.0,91057.0,0.04453]
[1764488852890,0.4844555,91058.0,91057.0,0.04453]
[1764488853077,0.04388,91053.0,91052.0,0.04453]
[1764488853275,0.07256,91058.0,91057.0,0.04453]
[1764488853478,0.09388,91058.0,91057.0,0.04453]
[1764488853977,0.05759,91080.0,91079.0,0.04453]
[1764488854184,0.05759,91080.0,91079.0,0.02163]
[1764488854185,0.44759,91080.0,91079.0,0.02163]
[1764488855088,0.45859,91080.0,91079.0,0.02263]
[1764488855386,0.24859,91080.0,91079.0,0.02263]
[1764488855585,0.25059,91080.0,91079.0,0.04553]
[1764488855790,0.07059,91080.0,91079.0,0.04553]
[1764488855988,0.51059,91080.0,91079.0,0.04553]
[1764488857489,0.49959,91080.0,91079.0,0.04453]
[1764488857691,0.50859,91080.0,91079.0,0.04453]
[1764488864691,0.87859,91080.0,91079.0,0.04453]
[1764488866294,0.87859,91080.0,91079.0,0.02163]
[1764488866679,0.87859,91080.0,91070.0,0.00016473]
[1764488866890,0.04879,91071.0,91070.0,0.04751473]
[1764488867185,0.41879,91071.0,91070.0,0.04751473]
[1764488868582,0.41979,91071.0,91070.0,0.04751473]
[1764488869595,0.42679,91071.0,91070.0,0.04751473]
[1764488870291,0.81679,91071.0,91070.0,0.00016473]
[1764488873689,0.81679,91071.0,91070.0,0.04751473]
[1764488875400,0.81679,91071.0,91070.0,0.02314473]
[1764488877405,0.81679,91071.0,91070.0,0.04751473]
[1764488879606,0.81679,91071.0,91070.0,0.02314473]
[1764488879802,0.81679,91071.0,91070.0,0.00016473]
[1764488880207,0.81679,91071.0,91070.0,0.02314473]
[1764488880599,0.81679,91071.0,91070.0,0.04751473]
[1764488881906,0.81679,91071.0,91070.0,0.00016473]
[1764488883199,0.81679,91071.0,91070.0,0.0393237]
[1764488883604,0.81679,91071.0,91067.0,0.03915897]
[1764488883803,0.04879,91067.0,91066.0,0.03915897]
[1764488884108,0.77879,91067.0,91066.0,0.03915897]
[1764488886004,0.40879,91067.0,91066.0,0.08650897]
[1764488886404,0.40979,91067.0,91066.0,0.08650897]
[1764488886713,0.41479,91067.0,91066.0,0.08650897]
[1764488888210,0.41479,91067.0,91066.0,0.03915897]
[1764488888411,0.41479,91067.0,91066.0,0.06213897]
[1764488889905,0.41479,91067.0,91066.0,0.02298]
[1764488890713,0.41479,91067.0,91066.0,0.04735]
[1764488892510,0.04879,91063.0,91062.0,0.05914791]
[1764488892812,0.04879,91058.0,91057.0,0.00016473]
[1764488893021,0.40879,91058.0,91057.0,0.04751473]
[1764488894009,0.40879,91058.0,91057.0,0.24744894]
[1764488895513,0.41279,91058.0,91057.0,0.24744894]
[1764488905526,0.364,91058.0,91057.0,0.24744894]
[1764488906320,0.364,91058.0,91057.0,0.32631283]
[1764488906516,0.38538,91058.0,91057.0,0.32631283]
[1764488906722,0.38538,91058.0,91057.0,0.24744894]
[1764488907118,0.29066728,91058.0,91057.0,0.24744894]
[1764488907323,0.33500728,91058.0,91057.0,0.24744894]
[1764488908218,0.31204728,91058.0,91057.0,0.24744894]
[1764488909421,0.28568221,91058.0,91057.0,0.24744894]
[1764488910525,0.31063221,91058.0,91057.0,0.24744894]
[1764488916820,0.26430221,91058.0,91057.0,0.24744894]
[1764488919922,0.29032221,91058.0,91057.0,0.24744894]
[1764488921237,0.31527221,91058.0,91057.0,0.24744894]
[1764488934144,0.29032221,91058.0,91057.0,0.24744894]
[1764488936237,0.31415221,91058.0,91057.0,0.24744894]
[1764488943244,0.26430221,91058.0,91057.0,0.24744894]
[1764488943643,0.26430221,91058.0,91057.0,0.34586806]
[1764488945443,0.28778221,91058.0,91057.0,0.34586806]
[1764488945644,0.31161221,91058.0,91057.0,0.34586806]
[1764488951350,0.26430221,91058.0,91057.0,0.34586806]
[1764488952452,0.28778221,91058.0,91057.0,0.34586806]
[1764488953855,0.26430221,91058.0,91057.0,0.34586806]
[1764488954349,0.26430221,91058.0,91057.0,0.24744894]
[1764488954753,0.26430221,91058.0,91057.0,0.34586806]
[1764488955146,0.25433391,91058.0,91057.0,0.24744894]
[1764488956156,0.29866391,91058.0,91057.0,0.24744894]
[1764488966879,0.25433391,91058.0,91057.0,0.24744894]
[1764488967380,0.29866391,91058.0,91057.0,0.24744894]
[1764488969179,0.29866391,91058.0,91057.0,0.32040838]
[1764488969377,0.29866391,91058.0,91057.0,0.24297894]
[1764488972683,0.25433391,91058.0,91057.0,0.24297894]
[1764488973470,0.27684391,91058.0,91057.0,0.24297894]
[1764488973888,0.25433391,91058.0,91057.0,0.24297894]
[1764488974684,0.27684391,91058.0,91057.0,0.24297894]
[1764488975675,0.29810391,91058.0,91057.0,0.24297894]
[1764488978584,0.25433391,91058.0,91057.0,0.24297894]
[1764488979283,0.27684391,91058.0,91057.0,0.24297894]
[1764488979486,0.25433391,91058.0,91057.0,0.24297894]
[1764488980184,0.27684391,91058.0,91057.0,0.24297894]
[1764488981280,0.29810391,91058.0,91057.0,0.24297894]
[1764488984286,0.27684391,91058.0,91057.0,0.24297894]
[1764488984787,0.29989391,91058.0,91057.0,0.24297894]
[1764488985281,0.25433391,91058.0,91057.0,0.24297894]
[1764488985787,0.27629391,91058.0,91057.0,0.24297894]
[1764488986889,0.29934391,91058.0,91057.0,0.24297894]
[1764488992990,0.25433391,91058.0,91057.0,0.24297894]
[1764488993390,0.27629391,91058.0,91057.0,0.24297894]
[1764488993591,0.29934391,91058.0,91057.0,0.24297894]
[1764488999397,0.394,91058.0,91057.0,0.24297894]
[1764488999790,0.41596,91058.0,91057.0,0.24297894]
[1764489000098,0.43901,91058.0,91057.0,0.24297894]
[1764489009101,0.29073792,91058.0,91057.0,0.24297894]
[1764489009400,0.24572792,91058.0,91057.0,0.24297894]
[1764489009609,0.04501,91074.0,91073.0,0.0556885]
[1764489009804,0.46501,91074.0,91073.0,0.2285285]
[1764489010707,0.47401,91074.0,91073.0,0.2285285]
[1764489012009,0.46601,91074.0,91073.0,0.2285285]
[1764489012199,0.47001,91074.0,91073.0,0.2285285]
[1764489016812,0.48588,91074.0,91073.0,0.2285285]
[1764489017512,0.44696,91074.0,91073.0,0.2285285]
[1764489017714,0.47587,91074.0,91073.0,0.2285285]
[1764489019514,0.44696,91074.0,91073.0,0.2285285]
[1764489019815,0.425,91074.0,91073.0,0.3285285]
[1764489020118,0.425,91074.0,91073.0,0.2285285]
[1764489020316,0.425,91074.0,91073.0,0.32703863]
[1764489022415,0.45162,91074.0,91073.0,0.32703863]
[1764489022914,0.48053,91074.0,91073.0,0.32703863]
[1764489024724,0.48053,91074.0,91073.0,0.30555863]
[1764489025019,0.48053,91074.0,91073.0,0.33321863]
[1764489030119,0.48053,91074.0,91073.0,0.2070485]
[1764489030411,0.48053,91074.0,91073.0,0.2332785]
[1764489030611,0.48053,91074.0,91073.0,0.2070485]
[1764489030820,0.48053,91074.0,91073.0,0.1838185]
[1764489031116,0.48053,91074.0,91073.0,0.2115985]
[1764489031620,0.48053,91074.0,91073.0,0.33633863]
[1764489035920,0.48053,91074.0,91073.0,0.2378285]
[1764489043936,0.48053,91074.0,91073.0,0.1838185]
[1764489044125,0.48053,91074.0,91073.0,0.17284]
[1764489045736,0.48053,91074.0,91073.0,0.19942]
[1764489046232,0.05116,91073.0,91072.0,0.0375585]
[1764489046532,0.05116,91066.0,91065.0,0.13791419]
[1764489046737,0.05116,91066.0,91052.0,0.01265024]
[1764489046738,0.05116,91062.0,91061.0,0.13791419]
[1764489046928,0.43116,91062.0,91061.0,0.13791419]
[1764489047128,0.05116,91058.0,91053.0,0.0109809]
[1764489047334,0.42116,91058.0,91056.0,0.0109805]
[1764489048729,0.42116,91058.0,91052.0,0.01265024]
[1764489048730,0.42116,91058.0,91057.0,0.00545775]
[1764489048931,1.21,91058.0,91045.0,0.051485]
[1764489049141,0.0256518,91057.0,91040.0,0.2568288]
[1764489049342,0.79,91057.0,91040.0,0.2725088]
[1764489050036,0.79,91057.0,91040.0,0.28453365]
[1764489050232,0.42,91057.0,91044.0,0.0109819]
[1764489050437,0.42,91057.0,91045.0,0.01568]
[1764489050633,0.42,91057.0,91045.0,0.04226]
[1764489051544,0.42,91057.0,91046.0,0.0109817]
[1764489052345,0.42,91057.0,91045.0,0.0266618]
[1764489053046,0.421,91057.0,91045.0,0.0266618]
[1764489053342,0.421,91057.0,91047.0,0.0616615]
[1764489053542,0.42,91057.0,91047.0,0.0616615]
[1764489054534,0.42,91057.0,91047.0,0.0626615]
[1764489056444,0.42,91057.0,91050.0,0.0109812]
[1764489056751,0.42,91057.0,91050.0,0.0266612]
[1764489057047,0.42,91057.0,91050.0,0.0532412]
[1764489057447,0.83,91057.0,91050.0,0.04226]
[1764489058349,0.55,91057.0,91050.0,0.04226]
[1764489060750,0.55,91057.0,91050.0,0.06636]
[1764489062841,0.55,91057.0,91056.0,0.01568]
[1764489064145,0.551,91057.0,91056.0,0.01568]
[1764489065356,0.553,91057.0,91056.0,0.01568]
[1764489073261,0.423,91057.0,91056.0,0.01568]
[1764489073564,0.423,91057.0,91056.0,0.04226]
[1764489075465,0.45083652,91057.0,91056.0,0.04226]
[1764489076972,0.45083652,91057.0,91056.0,0.06991]
[1764489077170,0.423,91057.0,91056.0,0.06991]
[1764489078265,0.421,91057.0,91056.0,0.06991]
[1764489078569,0.44890176,91057.0,91056.0,0.07091]
[1764489078871,0.44790176,91057.0,91056.0,0.07091]
[1764489079473,0.8,91057.0,91056.0,0.07091]
[1764489080876,0.8,91057.0,91056.0,0.06991]
[1764489081571,0.8,91057.0,91056.0,0.04226]
[1764489081772,0.8,91057.0,91056.0,0.01568]
[1764489083063,0.82789111,91057.0,91047.0,0.01568]
[1764489083371,0.02789111,91056.0,91047.0,0.0443]
[1764489083575,0.02789111,91056.0,91047.0,0.07195]
[1764489083576,0.84789111,91056.0,91047.0,0.07195]
[1764489083780,0.02789111,91055.0,91047.0,0.07195]
[1764489083969,0.79789111,91055.0,91047.0,0.07195]
[1764489084169,0.02789111,91054.0,91047.0,0.07195]
[1764489084371,0.82789111,91054.0,91047.0,0.07195]
[1764489084570,0.02789111,91053.0,91047.0,0.07295]
[1764489084769,0.89789111,91053.0,91047.0,0.07295]
[1764489084971,0.02789111,91052.0,91047.0,0.07195]
[1764489085271,0.83789111,91052.0,91047.0,0.07195]
[1764489085471,0.02789111,91051.0,91047.0,0.07195]
[1764489085671,0.82789111,91051.0,91041.0,0.01696]
[1764489085972,0.15083573,91050.0,91028.0,0.01696]
[1764489086272,0.20077111,91049.0,91028.0,0.04558]
[1764489086470,0.12901814,91038.0,91028.0,0.04558]
[1764489086778,0.02789111,91037.0,91028.0,0.07323]
[1764489087073,0.02789111,91036.0,91028.0,0.07323]
[1764489087273,0.02789111,91035.0,91028.0,0.07323]
[1764489087576,0.02789111,91035.0,91032.0,0.06689]
[1764489087577,0.02789111,91034.0,91032.0,0.06689]
[1764489087878,0.47,91034.0,91032.0,0.06689]
[1764489088068,0.47,91034.0,91032.0,0.07892045]
[1764489088374,0.75,91034.0,91032.0,0.07892045]
[1764489088972,0.75,91034.0,91032.0,0.08292045]
[1764489089569,0.37,91034.0,91033.0,0.05088]
[1764489090667,0.37,91034.0,91033.0,0.05388]
[1764489096670,0.37,91034.0,91033.0,0.02856]
[1764489097074,0.37,91034.0,91033.0,0.05388]
[1764489098584,0.8,91034.0,91033.0,0.003]
[1764489098782,0.82779255,91034.0,91024.0,0.01696]
[1764489098979,0.02779282,91033.0,91016.0,0.01601]
[1764489099178,0.78,91033.0,91017.0,0.0109852]
[1764489099379,0.78,91033.0,91023.0,0.02572473]
[1764489099579,0.78,91033.0,91023.0,0.05104473]
[1764489099784,0.78,91033.0,91023.0,0.06283574]
[1764489100086,0.78,91033.0,91025.0,0.26682418]
[1764489101588,0.78,91033.0,91025.0,0.27182418]
[1764489106076,0.12278936,91032.0,91025.0,0.14882872]
[1764489106282,0.02777415,91031.0,91023.0,0.00016473]
[1764489106481,0.02777415,91030.0,91023.0,0.00016473]
[1764489106682,0.02777415,91029.0,91023.0,0.00016473]